Cogmind - Beta 15 @@@ ROGUE MODE // 2025.08.08 @ 12:58:58 Player: ddblue0 Result: Destroyed by G-34 Mercenary with Small Laser Performance ------------- Evolutions (0) 0 Regions Visited (1) 200 Robots Destroyed (35) 175 Value Destroyed (842) 842 Prototype IDs (0) 0 Alien Tech Used (0) 0 Bonus (0) 0 TOTAL SCORE: 1217 Bonus ------- None Cogmind --------- Core Integrity 0/250 Matter 300/300 Energy 100/100 System Corruption 0% Temperature Cool (6) Movement Core (700) Ox13 Location -10/Materials Parts ------- > --- POWER (1) -------- (None) > --- PROPULSION (2) --- (None) > --- UTILITY (2) ------ High-capacity Storage Unit > --- WEAPON (2) ------- (None) > --- INVENTORY (20) --- Aluminum Leg Light Assault Rifle Peak State ------------ > --- POWER ------------ Light Ion Engine > --- PROPULSION ------- Aluminum Leg Aluminum Leg > --- UTILITY ---------- High-capacity Storage Unit Improved Terrain Scanner > --- WEAPON ----------- EM Pulse Gun Grenade Launcher > --- INVENTORY -------- Aluminum Leg High-capacity Storage Unit [Rating: 9] Favorites ----------- Power Light Ion Engine Engine Light Ion Engine Propulsion Aluminum Leg Leg Aluminum Leg Utility High-capacity Storage Unit Device Improved Terrain Scanner Storage High-capacity Storage Unit Weapon EM Pulse Gun Energy Gun EM Pulse Gun Energy Cannon Beam Cannon Launcher Grenade Launcher Build | -11 -10 ------- Run | Yrd Mat Slots Evolved . | . . Power . | . . Propulsion . | . . Utility . | . . Weapon . | . . Parts Attached 13 | 5 8 Power 2 | 1 1 Engine 2 | 1 1 Core . | . . Reactor . | . . Propulsion 4 | 2 2 Treads . | . . Leg 4 | 2 2 Wheel . | . . Hover . | . . Flight . | . . Utility 3 | 1 2 Device 1 | 1 . Storage 2 | . 2 Processor . | . . Hackware . | . . Protection . | . . Artifact . | . . Weapon 4 | 1 3 Energy Gun 2 | 1 1 Energy Cannon 1 | . 1 Ballistic Gun . | . . Ballistic Cannon . | . . Launcher 1 | . 1 Special Weapon . | . . Impact Weapon . | . . Slashing Weapon . | . . Piercing Weapon . | . . Special Melee Weapon . | . . Unidentified Prototypes . | . . Parts Lost 9 | . 9 Power 2 | . 2 Propulsion 2 | . 2 Utility 1 | . 1 Weapon 4 | . 4 Highest Loss Streak 3 | . 3 To Critical Strikes . | . . Average Backups 1 | . 1 Power . | . . Propulsion . | . . Utility . | . . Weapon . | . . Tool/Special . | . . Unused Backups 2 | . 2 Power . | . . Propulsion . | . . Utility 1 | . 1 Weapon 1 | . 1 Tool/Special . | . . Average Slot Usage (%) 83 | . 83 Engine 11 | . 11 Leg 26 | . 26 Device 6 | . 6 Storage 18 | . 18 Energy Gun 5 | . 5 Energy Cannon 7 | . 7 Launcher 5 | . 5 Peak Build Rating 9 | 7 9 Average Rating 6 | 5 7 On Entrance 3 | . 7 Naked Turns . | . . Heaviest Build 53 | 6 53 Greatest Support 20 | 20 20 Greatest Overweight (x) 14 | . 14 Average Overweight (x) 1 | . 1 Largest Inventory Capacity 20 | 5 20 Average Capacity 15 | 5 19 Most Carried 3 | 2 3 Average Carried 1 | . 1 Final Capacity 20 | 5 20 Final Carried 2 | 1 2 Class Distribution -------------------- 100% | Mutant Dominant Class ---------------- Mutant | -10/Materials Resources | -11 -10 ----------- Run | Yrd Mat Matter Collected 565 | 250 315 Remotely . | . . Salvage Created 916 | 71 845 Parts 66 | 6 60 Haulers Intercepted 2 | . 2 Recyclers Shooed 1 | . 1 Parts Field Recycled . | . . Retrieved Matter . | . . Parts Self-Destructed . | . . Prevented . | . . Kills | -11 -10 ------- Run | Yrd Mat Combat Hostiles Destroyed 20 | 1 19 Guns 1 | 1 . Cannons 9 | . 9 AOE 10 | . 10 Classes Destroyed 8 | 2 6 Worker 4 | . 4 Builder 3 | . 3 Tunneler 1 | 1 . Hauler 2 | . 2 Recycler 1 | . 1 Operator 1 | . 1 Watcher 3 | . 3 Grunt 20 | 1 19 Best Kill Streak 8 | 1 8 Combat Bots Only 3 | 1 3 Max Kills in Single Turn 3 | 1 3 Gunslinging . | . . Exploded 2 | . 2 Melee . | . . Uniques/NPCs Destroyed . | . . Combat | -11 -10 -------- Run | Yrd Mat Hostile Shots Fired 134 | 7 127 Missed 43 | 1 42 Hits 91 | 6 85 Projectile 91 | 6 85 Critical Strikes 1 | . 1 Damage Taken 1075 | 65 1010 Core 256 | 10 246 Absorbed by Shields . | . . Core Remaining (%) 96 | 96 . Volleys Fired 84 | 11 73 Largest 2 | 1 2 Hottest 100 | 40 100 Shots Fired 98 | 11 87 Gun 22 | 11 11 Cannon 55 | . 55 Launcher 21 | . 21 Special . | . . Kinetic . | . . Thermal 55 | . 55 Explosive 21 | . 21 Electromagnetic 22 | 11 11 Robot Hit Streak 7 | 3 7 Robot Miss Streak 4 | 2 4 Penetration Max . | . . Secondary Targets . | . . Shots Hit Robots 61 | 6 55 Core Hits 57 | 5 52 Critical Kills . | . . Critical Parts Destroyed . | . . Critical Strikes . | . . Melee Attacks . | . . Impact . | . . Slashing . | . . Piercing . | . . Sneak Attacks . | . . Combat Hostiles . | . . Follow-up Attacks . | . . Damage Inflicted 2181 | 81 2100 Guns 219 | 77 142 Cannons 635 | . 635 Explosions 1323 | . 1323 Melee . | . . Ramming 4 | 4 . Kinetic . | . . Thermal 635 | . 635 Explosive 1323 | . 1323 Electromagnetic 219 | 77 142 Impact . | . . Slashing . | . . Piercing . | . . Highest Corruption . | . . Average Corruption . | . . Corruption Purged . | . . Corruption Blocked . | . . Overload Shots . | . . Overflow Damage 16 | . 16 Projectiles 6 | . 6 Explosions 10 | . 10 Melee . | . . Knockbacks . | . . Impact . | . . Kinetic . | . . Secondary . | . . Self-Inflicted Damage . | . . Shots . | . . Rammed . | . . Targets Rammed 2 | 2 . Kicked 2 | 2 . Crushed . | . . Highest Temperature 264 | 44 264 Average Temperature 85 | 26 89 Received Heat Transfer 621 | 36 585 Effects 1 | . 1 Interference 1 | . 1 Siege Activations . | . . Martial Activations . | . . Shielding Activations . | . . Robots Disrupted . | . . Combat Hostiles . | . . Robots Corrupted . | . . Combat Hostiles . | . . Parts Fried . | . . Impact Corruptions . | . . Robots Melted . | . . Combat Hostiles . | . . Parts Melted 2 | . 2 Heat Transferred 1332 | . 1332 Parts Sabotaged . | . . Parts Stolen . | . . Parts Stripped . | . . Power Chain Reactions . | . . Alert | -11 -10 ------- Run | Yrd Mat Maximum Alert Level . | . . Low Security (%) 100 | 100 100 Level 1 . | . . Level 2 . | . . Level 3 . | . . Level 4 . | . . Level 5 . | . . High Security . | . . Max Security . | . . Peak Influence 158 | 20 158 Initial . | . . Average 57 | . 76 Influence Increases 710 | 25 685 Destroy 0b10 Robot/C 400 | 20 380 Destroy 0b10 Robot/NC 75 | 5 70 Destroy Leader 90 | . 90 Successful Hack 9 | . 9 Disable Machine 15 | . 15 Destroy Structure 76 | . 76 Lose Combat Pursuer 45 | . 45 Influence Decreases 668 | 25 643 Time Decay 455 | 25 430 Lost Part 74 | . 74 Purge Threat 139 | . 139 Squads Dispatched 5 | . 5 Investigation 4 | . 4 Extermination . | . . Reinforcement 1 | . 1 Assault . | . . Garrison . | . . Intercept . | . . Searches Triggered . | . . Construction Impeded . | . . Haulers Reinforced . | . . Active Scanning Responses . | . . Cargo Convoy Interrupts . | . . Stealth | -11 -10 --------- Run | Yrd Mat Distress Signals 1 | . 1 Communications Jammed . | . . Distress Signals . | . . Times Spotted 33 | 1 32 Peak Tracking Total 5 | 1 5 Tactical Retreats 2 | . 2 Traps | -11 -10 ------- Run | Yrd Mat Traps Triggered 1 | . 1 Indirectly . | . . Trap Hack Attempts . | . . Triggered . | . . Disarmed . | . . Reprogrammed . | . . Reused . | . . Traps Extracted . | . . Installed . | . . Triggered . | . . Machines | -11 -10 ---------- Run | Yrd Mat Machines Disabled 1 | . 1 Max in Single Turn 1 | . 1 Machines Repaired . | . . Machines Dismantled . | . . Machines Sabotaged . | . . Overloaded Fab Kills . | . . Hacking | -11 -10 --------- Run | Yrd Mat Machines Accessed 5 | . 5 Terminals 4 | . 4 Fabricators . | . . Repair Stations . | . . Recycling Units 1 | . 1 Scanalyzers . | . . Garrison Access . | . . Total Hacks 20 | . 20 Successful 12 | . 12 Failed 8 | . 8 Catastrophic 1 | . 1 Database Lockouts . | . . Manual . | . . Terminals 17 | . 17 Fabricators . | . . Repair Stations . | . . Recycling Units 3 | . 3 Scanalyzers . | . . Garrison Access . | . . Terminal Hacks 9 | . 9 Record 6 | . 6 Alert Level 2 | . 2 Unreport Threat 1 | . 1 Fabricator Hacks . | . . Repair Station Hacks . | . . Recycling Unit Hacks 3 | . 3 Recycle Component 2 | . 2 Process 1 | . 1 Scanalyzer . | . . Garrison Access Hacks . | . . Unauthorized Hacks . | . . Terminals . | . . Fabricators . | . . Repair Stations . | . . Recycling Units . | . . Scanalyzers . | . . Garrison Access . | . . Data Cores Recovered . | . . Used . | . . Hacking Detections 5 | . 5 Full Trace Events 4 | . 4 Feedback Events . | . . Feedback Blocked . | . . Robot Schematics Acquired . | . . Robots Built . | . . Authchips . | . . Time . | . . Total Robot Build Rating . | . . Part Schematics Acquired . | . . Parts Built . | . . Authchips . | . . Time . | . . Total Part Build Rating . | . . Parts Repaired . | . . Time . | . . Parts Recycled 2 | . 2 Recycled Matter 397 | . 397 Retrieved Matter . | . . Retrieved Components . | . . Parts Scanalyzed . | . . Part Schematics Acquired . | . . Parts Damaged . | . . Bothacking | -11 -10 ------------ Run | Yrd Mat Used RIF Installer . | . . Robots Hacked . | . . Non-combat . | . . Combat . | . . Robot Hacks Applied . | . . Relay Couplers Released . | . . Fabnet Peak Effective % . | . . Robots Rewired . | . . Allies Hacked . | . . Hacks Repelled . | . . Allies | -11 -10 -------- Run | Yrd Mat Total Allies . | . . Largest Group . | . . Highest-Rated Group . | . . Highest-Rated Ally . | . . Total Orders . | . . Ally Attacks . | . . Total Damage . | . . Kills . | . . Allies Corrupted . | . . Allies Melted . | . . Intel | -11 -10 ------- Run | Yrd Mat Active Infowar (turns) 811 | 236 575 Terrain 811 | 236 575 Robot Analysis Total . | . . Derelict Logs Recovered . | . . Drone Launches . | . . Drone Recoveries . | . . Exploration | -11 -10 ------------- Run | Yrd Mat Turns Passed 1779 | 444 1335 Spaces Moved 828 | 362 466 Core 39 | 34 5 Treads . | . . Legs 789 | 328 461 Wheels . | . . Hover . | . . Flight . | . . Fastest Speed 50 | 50 120 Average Speed 187 | 113 245 Slowest Speed 750 | 120 750 Overloaded Moves . | . . Propulsion Burnouts . | . . Robots Hopped . | . . Potential Cave-ins . | . . Cave-ins Triggered . | . . Exploration Rate (%) 30 | 9 52 Regions Visited 1 Branch Regions . Pre-discovered Areas . | . . Known Exits Taken . | . . Unknown Exits Taken 1 | 1 . Scrap Searched . | . . Spaces Dug . | . . Terrain Destroyed 74 | . 74 Melee . | . . Projectile . | . . AOE 74 | . 74 Terrain Rammed . | . . Walls Destroyed . | . . Machines Disabled . | . . Actions | -11 -10 --------- Run | Yrd Mat Total 953 | 383 570 Wait 17 | . 17 Move 827 | 361 466 Hop . | . . Pick Up 8 | 4 4 Fast Attach 6 | 2 4 Attach 5 | 3 2 Detach 1 | . 1 Swap 2 | . 2 Drop 1 | . 1 Fire 84 | 11 73 Melee . | . . Ram . | . . Kick 2 | 2 . Crush . | . . Escape Stasis . | . . Rewire . | . . Trap . | . . Miscellaneous . | . . Route ------- -11/Scrapyard -10/Materials (discovered 2 exits: [*Mat x2]) History --------- Turn | Location | Event 2 | -11/Scrapyard | Met Revision 17 132 | -11/Scrapyard | Discovered new exit (range 8) 445 | -11/Scrapyard | Entered Materials 446 | -10/Materials | Build established: Mutant 936 | -10/Materials | Discovered new exit (range 16) 1368 | -10/Materials | Discovered new exit (range 13) 1514 | -10/Materials | Core integrity fell below 50% 1716 | -10/Materials | Core integrity fell below 20% 1764 | -10/Materials | Lost 3 parts (1p2n) 1780 | -10/Materials | Destroyed by G-34 Mercenary with Small Laser Last Messages --------------- Current Alert Level: Low Security ALERT: Suspicious activity at Terminal M002. Dispatching Investigation squad. R-06 Scavenger collects Aluminum Leg. R-06 Scavenger collects Ion Engine. Critical hit (Burn: +37). R-06 Scavenger collects Sml. Laser. G-34 Mercenary destroyed. Imp. Ion Engine destroyed. K-01 Serf collects debris. Aluminum Leg destroyed. K-01 Serf collects debris. Aluminum Leg destroyed. G-47 Trooper destroyed. R-06 Scavenger collects Aluminum Leg. K-01 Serf collects debris. Destroyed Heat Sink. K-01 Serf collects debris. Beam Cannon destroyed. [Achievement: First Step to Greatness] Map ----- +----------------------------------------------------+ | | | | | | | | | | | | | | | | | | | | | | | | | | | | | ?????????????????????????????????????????????????? | | ?????????????????????????????????????????????????? | | ?????????????????????????????????????????????????? | | ?????????????????????????????????????????????????? | | ?????????????????????????????????????????????????? | | ?????????????????????????????????????????????????? | | ???????????????????##########????????????????????? | | ????????############ #????????????????????? | | ????????# # # #????#???????????????? | | ????????# < # # ### ##??????????????? | | ????????# # # g #??????????? | | ????????# + """" # |@ ### #??????????? | | ????????# # """" # | k#????????????????????? | | ????????# # """" # k #????????????????????? | | ????????# ######## #????????????????????? | | ????????# #??????# = #????????????????????? | | ????????# ############+####????????????????????? | | ????????# % ########???#??????????? | | ????????# *%! = ## #??????????? | | ######### % #??????????? | | % % #??????????? | | %"" """ #??????????? | | ######### ##########% "" """ #??????????? | | #?# # ???????# %"T """ #??????????? | | #?# #????????# ="" ! #??????????? | | #?# +????????# "" #???????? | | ### #??????? # % #???????? | | ### #?"??????# ???????? | | #?# #????#+#?# ############# ????????? | | #? ???## ### #??????????????????????? | | #? "" ??? #??????????????????????? | | ######## T ? ### #??????????????????????? | | #####??# ### #??????????????????????? | | #???# #### ### #??????????????????????? | | #???##?####??# ### #??????????????????????? | | #?????#??????# #?# ##?????????????????????? | +----------------------------------------------------+ Best States ------------- Heat Dissipation 25 Energy Generation 12 Energy Capacity 265 Matter Stores 350 Matter Capacity 350 Sight Range 16 Terrain Scan Range 16 Terrain Scan Density 10 Evasion (%) 55 Item Schematics ----------------- None Robot Schematics ------------------ None Fabricated ------------ Nothing Repaired ---------- Nothing Alien Tech Used ----------------- None Achievements -------------- Everything Is Under Control First Step to Greatness Loot Pinata One Hack Too Far Challenges ------------ None Game ------ Seed LightpackMicrowarpDiverter Manual? 0 Play Time 00:42:48 Cumulative 0.6 hours Start 2025.08.07 @ 22:31:09 End 2025.08.08 @ 12:58:58 Sessions 1 Manual Loads 0 Difficulty Rogue Special Mode None Game No. 2 Rogue 2 Adventurer 0 Explorer 0 Win Type - Total 0 Types 0/0/0/0/0/0/0/0/0/0 Lore% 0 Gallery% 2 Achievement% 3 Wizard Run 0 Options --------- Layout 1 ASCII 0 Keyboard 0 Movement Numpad Keybinds 0 Fullscreen 0 Font 20/SmallcapsGlow Map View 32x21 Zoom Use 99% Tactical HUD 0 Map Filters NONE Filters NONE Steam 1 RUN: f327b221-4812-43bf-b651-c3f6a4e10453